Cogmind - Beta 13 @@@ ROGUE MODE // 2024.05.06 @ 14:19:00 Player: ElectroBlueGuy Result: Destroyed by D-53 Grenadier with Mini Grenade Launcher Performance ------------- Evolutions (0) 0 Regions Visited (2) 400 Robots Destroyed (19) 95 Value Destroyed (439) 439 Prototype IDs (0) 0 Alien Tech Used (0) 0 Bonus (0) 0 TOTAL SCORE: 934 Bonus ------- None Cogmind --------- Core Integrity 0/250 Matter 300/300 Energy 120/125 System Corruption 4% Temperature Cool (3) Movement Walking (190) Ox1 Location -10/Mines Parts ------- > --- POWER (1) -------- Light Ion Engine > --- PROPULSION (2) --- Aluminum Leg Flexi-carbon Leg > --- UTILITY (2) ------ High-capacity Storage Unit Improved Terrain Scanner > --- WEAPON (2) ------- Light Cannon Hammer > --- INVENTORY (20) --- Light Ion Engine Light Ion Engine Aluminum Leg Aluminum Leg Small Storage Unit Cargo Storage Unit Sensor Array ECM Suite Tractor Beam Tractor Beam Medium Laser Particle Gun Assault Rifle Hammer Peak State ------------ > --- POWER ------------ Light Ion Engine > --- PROPULSION ------- Aluminum Leg Flexi-carbon Leg > --- UTILITY ---------- High-capacity Storage Unit Improved Terrain Scanner > --- WEAPON ----------- Light Cannon Hammer > --- INVENTORY -------- Light Ion Engine Light Ion Engine Aluminum Leg Aluminum Leg Small Storage Unit Cargo Storage Unit Sensor Array ECM Suite Tractor Beam Tractor Beam Medium Laser Particle Gun Assault Rifle Hammer [Rating: 14] Favorites ----------- Power Light Ion Engine Engine Light Ion Engine Propulsion Aluminum Leg Leg Aluminum Leg Utility Weight Redist. System Device Weight Redist. System Storage High-capacity Storage Unit Weapon Grenade Launcher Energy Gun Medium Laser Ballistic Gun Assault Rifle Ballistic Cannon Light Cannon Launcher Grenade Launcher Impact Weapon Hammer Build | -11 -10 -10 ------- Run | Yrd Mat Min Slots Evolved . | . . . Power . | . . . Propulsion . | . . . Utility . | . . . Weapon . | . . . Parts Attached 16 | 6 7 3 Power 1 | 1 . . Engine 1 | 1 . . Core . | . . . Reactor . | . . . Propulsion 3 | 2 . 1 Treads . | . . . Leg 3 | 2 . 1 Wheel . | . . . Hover . | . . . Flight . | . . . Utility 6 | 1 4 1 Device 4 | . 3 1 Storage 2 | 1 1 . Processor . | . . . Hackware . | . . . Protection . | . . . Artifact . | . . . Weapon 6 | 2 3 1 Energy Gun 1 | 1 . . Energy Cannon . | . . . Ballistic Gun 1 | 1 . . Ballistic Cannon 1 | . . 1 Launcher 2 | . 2 . Special Weapon . | . . . Impact Weapon 1 | . 1 . Slashing Weapon . | . . . Piercing Weapon . | . . . Special Melee Weapon . | . . . Unidentified Prototypes . | . . . Parts Lost 2 | . . 2 Power . | . . . Propulsion . | . . . Utility 1 | . . 1 Weapon 1 | . . 1 Highest Loss Streak 2 | . . 2 To Critical Strikes . | . . . Average Slot Usage (%) 98 | . 98 94 Engine 14 | . 14 14 Leg 28 | . 28 28 Device 12 | . 12 10 Storage 14 | . 14 14 Energy Gun 1 | . 1 . Launcher 13 | . 13 6 Impact Weapon 12 | . 12 14 Naked Turns . | . . . Heaviest Build 49 | 12 48 49 Greatest Support 36 | 20 26 36 Greatest Overweight (x) 3 | 3 1 1 Average Overweight (x) . | . . 1 Largest Inventory Capacity 20 | 8 20 20 Average Capacity 18 | 6 18 20 Most Carried 16 | 2 15 16 Average Carried 10 | 1 10 15 Final Capacity 20 | 8 20 20 Final Carried 15 | 2 15 15 Class Distribution -------------------- 100% | Mutant Dominant Class ---------------- Mutant | -10/Materials Mutant | -10/Mines Resources | -11 -10 -10 ----------- Run | Yrd Mat Min Matter Collected 578 | 209 266 103 Remotely . | . . . Salvage Created 358 | . 345 13 Parts 25 | . 25 . Haulers Intercepted 2 | . 2 . Recyclers Shooed . | . . . Parts Field Recycled . | . . . Retrieved Matter . | . . . Parts Self-Destructed . | . . . Prevented . | . . . Kills | -11 -10 -10 ------- Run | Yrd Mat Min Combat Hostiles Destroyed 13 | . 10 3 Melee 1 | . . 1 Cannons 2 | . . 2 AOE 10 | . 10 . Classes Destroyed 8 | . 7 1 Tunneler 2 | . 2 . Hauler 2 | . 2 . Recycler 1 | . 1 . Mechanic 1 | . 1 . Watcher 3 | . 3 . Swarmer 3 | . 3 . Grunt 7 | . 7 . Assembled 3 | . . 3 Best Kill Streak 6 | . 6 2 Combat Bots Only 5 | . 5 2 Max Kills in Single Turn 3 | . 3 1 Gunslinging . | . . . Exploded 3 | . 3 . Melee 1 | . . 1 Uniques/NPCs Destroyed . | . . . Combat | -11 -10 -10 -------- Run | Yrd Mat Min Hostile Shots Fired 32 | . 19 13 Missed 2 | . . 2 Damage Taken 555 | . 325 230 Core 258 | . 122 136 Absorbed by Shields . | . . . Regen/Repaired (Parts) 51 | . 51 . Core Remaining (%) 100 | 100 . . Volleys Fired 31 | . 24 7 Largest 2 | . 2 1 Hottest 80 | . 80 35 Shots Fired 37 | . 30 7 Gun 10 | . 10 . Cannon 7 | . . 7 Launcher 20 | . 20 . Special . | . . . Kinetic 7 | . . 7 Thermal 10 | . 10 . Explosive 20 | . 20 . Electromagnetic . | . . . Robot Hit Streak 5 | . 5 4 Robot Miss Streak 1 | . 1 1 Penetration Max . | . . . Secondary Targets . | . . . Shots Hit Robots 21 | . 13 8 Core Hits 31 | . 26 5 Critical Kills . | . . . Critical Parts Destroyed . | . . . Critical Strikes 2 | . 2 . Burn 2 | . 2 . Melee Attacks 10 | . 6 4 Impact 10 | . 6 4 Slashing . | . . . Piercing . | . . . Sneak Attacks 3 | . 3 . Combat Hostiles . | . . . Follow-up Attacks . | . . . Damage Inflicted 1418 | . 1251 167 Guns 50 | . 50 . Cannons 106 | . . 106 Explosions 1005 | . 1005 . Melee 257 | . 196 61 Ramming . | . . . Kinetic 106 | . . 106 Thermal 50 | . 50 . Explosive 1005 | . 1005 . Electromagnetic . | . . . Impact 257 | . 196 61 Slashing . | . . . Piercing . | . . . Highest Corruption 4 | . . 4 Average Corruption 3 | . . 3 Corruption Purged . | . . . Corruption Blocked . | . . . Overload Shots . | . . . Overflow Damage 122 | . 122 . Projectiles . | . . . Explosions 54 | . 54 . Melee 68 | . 68 . Knockbacks 3 | . . 3 Impact 1 | . . 1 Kinetic 2 | . . 2 Secondary . | . . . Self-Inflicted Damage 59 | . 59 . Shots 4 | . 4 . Rammed . | . . . Targets Rammed . | . . . Kicked . | . . . Crushed . | . . . Highest Temperature 66 | . 66 . Average Temperature 20 | . 20 . Received Heat Transfer 120 | . 120 . Siege Activations . | . . . Robots Corrupted . | . . . Combat Hostiles . | . . . Parts Fried 4 | . 4 . Impact Corruptions 4 | . 4 . Robots Melted . | . . . Combat Hostiles . | . . . Parts Melted 2 | . 2 . Heat Transferred 296 | . 296 . Parts Sabotaged . | . . . Parts Stolen . | . . . Parts Stripped . | . . . Power Chain Reactions . | . . . Alert | -11 -10 -10 ------- Run | Yrd Mat Min Peak Influence 311 | . 311 52 Initial 52 | . . 52 Average 109 | . 119 40 Maximum Alert Level 1 | . 1 . Low Security (%) 91 | 100 90 100 Level 1 8 | . 9 . Level 2 . | . . . Level 3 . | . . . Level 4 . | . . . Level 5 . | . . . High Security . | . . . Max Security . | . . . Squads Dispatched 1 | . 1 . Investigation 1 | . 1 . Extermination . | . . . Reinforcement . | . . . Assault . | . . . Garrison . | . . . Intercept . | . . . Searches Triggered . | . . . Construction Impeded . | . . . Haulers Reinforced . | . . . Active Scanning Responses . | . . . Cargo Convoy Interrupts . | . . . Stealth | -11 -10 -10 --------- Run | Yrd Mat Min Distress Signals . | . . . Communications Jammed . | . . . Distress Signals . | . . . Times Spotted 22 | . 16 6 Peak Tracking Total 3 | . 3 2 Tactical Retreats . | . . . Traps | -11 -10 -10 ------- Run | Yrd Mat Min Traps Triggered 2 | . 2 . Indirectly . | . . . Trap Hack Attempts . | . . . Triggered . | . . . Disarmed . | . . . Reprogrammed . | . . . Reused . | . . . Traps Extracted . | . . . Installed . | . . . Triggered . | . . . Machines | -11 -10 -10 ---------- Run | Yrd Mat Min Machines Disabled 6 | . 6 . Max in Single Turn 2 | . 2 . Machines Repaired . | . . . Machines Dismantled . | . . . Machines Sabotaged . | . . . Overloaded Fab Kills . | . . . Hacking | -11 -10 -10 --------- Run | Yrd Mat Min Machines Accessed 6 | . 6 . Terminals 4 | . 4 . Fabricators . | . . . Repair Stations 1 | . 1 . Recycling Units 1 | . 1 . Scanalyzers . | . . . Garrison Access . | . . . Total Hacks 14 | . 14 . Successful 7 | . 7 . Failed 7 | . 7 . Catastrophic 1 | . 1 . Database Lockouts . | . . . Manual . | . . . Terminals 10 | . 10 . Fabricators . | . . . Repair Stations 2 | . 2 . Recycling Units 2 | . 2 . Scanalyzers . | . . . Garrison Access . | . . . Terminal Hacks 4 | . 4 . Level Access Points 1 | . 1 . Alert Level 1 | . 1 . Hauler Manifests 2 | . 2 . Fabricator Hacks . | . . . Repair Station Hacks 2 | . 2 . Scan Component 1 | . 1 . Repair 1 | . 1 . Recycling Unit Hacks 1 | . 1 . Report Inventory 1 | . 1 . Scanalyzer . | . . . Garrison Access Hacks . | . . . Unauthorized Hacks . | . . . Terminals . | . . . Fabricators . | . . . Repair Stations . | . . . Recycling Units . | . . . Scanalyzers . | . . . Garrison Access . | . . . Data Cores Recovered . | . . . Used . | . . . Hacking Detections 4 | . 4 . Full Trace Events 1 | . 1 . Feedback Events . | . . . Feedback Blocked . | . . . Robot Schematics Acquired . | . . . Robots Built . | . . . Authchips . | . . . Time . | . . . Total Robot Build Rating . | . . . Part Schematics Acquired . | . . . Parts Built . | . . . Authchips . | . . . Time . | . . . Total Part Build Rating . | . . . Parts Repaired 1 | . 1 . Time 32 | . 32 . Parts Recycled . | . . . Recycled Matter . | . . . Retrieved Matter . | . . . Retrieved Components . | . . . Parts Scanalyzed . | . . . Part Schematics Acquired . | . . . Parts Damaged . | . . . Bothacking | -11 -10 -10 ------------ Run | Yrd Mat Min Used RIF Installer . | . . . Robots Hacked . | . . . Non-combat . | . . . Combat . | . . . Robot Hacks Applied . | . . . Relay Couplers Released . | . . . Fabnet Peak Effective % . | . . . Robots Rewired . | . . . Allies Hacked . | . . . Hacks Repelled . | . . . Allies | -11 -10 -10 -------- Run | Yrd Mat Min Total Allies . | . . . Largest Group . | . . . Highest-Rated Group . | . . . Highest-Rated Ally . | . . . Total Orders . | . . . Ally Attacks . | . . . Total Damage . | . . . Kills . | . . . Allies Corrupted . | . . . Allies Melted . | . . . Intel | -11 -10 -10 ------- Run | Yrd Mat Min Robot Analysis Total . | . . . Derelict Logs Recovered . | . . . Drone Launches . | . . . Drone Recoveries . | . . . Exploration | -11 -10 -10 ------------- Run | Yrd Mat Min Turns Passed 1465 | 43 1311 111 Spaces Moved 719 | 25 651 43 Core 11 | 11 . . Treads . | . . . Legs 708 | 14 651 43 Wheels . | . . . Hover . | . . . Flight . | . . . Fastest Speed 50 | 50 120 190 Average Speed 178 | 130 179 190 Slowest Speed 200 | 200 190 190 Overloaded Moves . | . . . Propulsion Burnouts . | . . . Robots Hopped . | . . . Cave-ins Triggered . | . . . Exploration Rate (%) 35 | 3 86 16 Regions Visited 2 Branch Regions 1 Pre-discovered Areas . | . . . Known Exits Taken . | . . . Unknown Exits Taken 2 | 1 1 . Scrap Searched . | . . . Spaces Dug . | . . . Terrain Destroyed 123 | . 123 . Melee . | . . . Projectile . | . . . AOE 123 | . 123 . Terrain Rammed . | . . . Walls Destroyed . | . . . Machines Disabled . | . . . Actions | -11 -10 -10 --------- Run | Yrd Mat Min Total 844 | 33 752 59 Wait 48 | . 48 . Move 717 | 24 650 43 Hop . | . . . Pick Up 21 | 3 16 2 Fast Attach 5 | 5 . . Attach 5 | 1 2 2 Detach . | . . . Swap 6 | . 5 1 Drop 1 | . 1 . Fire 31 | . 24 7 Melee 10 | . 6 4 Ram . | . . . Kick . | . . . Crush . | . . . Escape Stasis . | . . . Rewire . | . . . Trap . | . . . Miscellaneous . | . . . Route ------- -11/Scrapyard -10/Materials (discovered 4 exits: *Mat x3 / [*Min]) -10/Mines History --------- Turn | Location | Event 21 | -11/Scrapyard | Discovered new exit (range 14) 44 | -11/Scrapyard | Entered Materials 123 | -10/Materials | Discovered new exit (range 16) 196 | -10/Materials | Repaired Particle Gun 313 | -10/Materials | Build established: Mutant 399 | -10/Materials | Discovered new exit (range 11) 809 | -10/Materials | Discovered new exit (range 10) 1108 | -10/Materials | Identified exit to Materials 1332 | -10/Materials | Discovered new exit (range 12) 1355 | -10/Materials | Entered Mines 1356 | -10/Mines | Assembled infested the area 1361 | -10/Mines | Assisted by a Guerilla fighting off Assembled 1402 | -10/Mines | Core integrity fell below 50% 1417 | -10/Mines | Core integrity fell below 20% 1466 | -10/Mines | Destroyed by D-53 Grenadier with Mini Grenade Launcher Last Messages --------------- 01389_ Acquired Flexi-carbon Leg. 01393_ Acquired 7 matter. 01398_ HV Slug penetrates Wall. 01398_ T1-HDL(h) destroyed. 01400_ Grenade Launcher destroyed. 01400_ System corrupted by crushing effect (+1). 01403_ Weight Redist. System destroyed. 01403_ System corrupted by crushing effect (+3). 01404_ as-07542 knocked back. 01411_ as-07542 sneak attacks. 01411_ T-07 Excavator destroyed. 01414_ as-07542 destroyed. 01424_ as-89711 destroyed. 01430_ Acquired 2 matter. 01431_ Acquired 15 matter. 01435_ Acquired Imp. Terrain Scanner. 01437_ Acquired 55 matter. 01443_ Acquired 2 matter. 01447_ Acquired 7 matter. 01449_ Acquired 4 matter. Map ----- +----------------------------------------------------+ | ???????????????????#??????????????????????? | | ???????????##????? #??????????????????????? | | ??????????? ##?## #??????????????????????? | | ??????????? ## ##?????????????????????? | | ??????????? ##????????????????????? | | ??????????? #????????????????????? | | ???????????# #?????????????????????? | | ???????##### #??????????????????????? | | ???????# #???????????????????????? | | ???????# ##???????????????????????? | | ???????# # #????????????????????????? | | ???????# # ##????????????????????????? | | ???????# #######????#????????????????????? | | ???????# #???????????????????????????????? | | ???????# #?????????#?????????????????????? | | ???????# ###?????????????????????????????? | | ?#?????# ##????????????????????????????? | | ??#????# #????????????????????????????? | | #?????## #????????????????????????????? | | ???#### ##????????????????????????????? | | ??## % ##?????#???????????????????????? | | ??# "" =#########??????????????????????? | | ??# "" %%% #?#????????????????????? | | ??# " " % #??????????????????????? | | ??## % ###"#; ######d #?????????????? | | ???#### #"?# ## %@ d ????????? | | ??????# #?#?### ##### #???????????????? | | ??????# ?#???# < #??????????????????????? | | ????#?# ????# #?????????????????????? | | ??#???# ??? #????????????????????? | | ??????#??# ?????#?????????????? | | ?????????# ??????????????????? | | ?????????## ### ?????????????????? | | ??????????#####??## #????????????????? | | ????????????????#?? ##????????????????? | | ???????????#??????? ###?????????????????? | | ????????????#?????? ##???????????????????? | | ???????????????#? ? #????????????????????? | | ???????????#??????? #????????????????????? | | ??????????????????? ##????????????????????? | | ???????????????????#??????????????????????? | | ??????????????????????????????????????????? | | ??????????????????????????????????????????? | | ??????????????????????????????????????????? | | ??????????????????????????????????????????? | | ??????????????????????????????????????????? | | ??????????????????????????????????????????? | | ??????????????????????????????????????????? | | ??????????????????????????????????????????? | | ??????????????????????????????????????????? | +----------------------------------------------------+ Best States ------------- Heat Dissipation 25 Energy Generation 10 Energy Capacity 125 Matter Stores 300 Matter Capacity 300 Sight Range 16 Robot Scan Range 14 Terrain Scan Range 16 Terrain Scan Density 10 Additional Mass Support 6 Evasion (%) 55 Item Schematics ----------------- None Robot Schematics ------------------ None Fabricated ------------ Nothing Alien Tech Used ----------------- None Achievements -------------- None Challenges ------------ None Game ------ Seed BombSubatomicDoomcannon Manual? 0 Play Time 00:13:03 Cumulative 5.7 hours Start 2024.05.06 @ 14:06:52 End 2024.05.06 @ 14:19:00 Sessions 1 Manual Loads 0 Difficulty Rogue Special Mode None Game No. 16 Rogue 16 Adventurer 0 Explorer 0 Win Type - Total 0 Types 0/0/0/0/0/0/0/0/0 Lore% 2 Gallery% 15 Achievement% 9 Wizard Run 0 Options --------- Layout 1 ASCII 0 Keyboard 1 Movement Numpad Keybinds 0 Fullscreen 1 Font 24/Smallcaps Map View 50x35 Zoom Use 0% Tactical HUD 1 Map Filters NONE Filters NONE Steam 1 RUN: 547f8d77-8305-4c56-9a3b-0ad72df50682